[Event "FIDE World Rapid Chess Championship 2021"]
[White "Jakubowski, Krzysztof"]
[Black "Lima, Darcy"]
[WhiteFideId "1112848"]
[BlackFideId "2100045"]
[WhiteElo "2399"]
[BlackElo "2505"]
[Result "1/2-1/2"]
[Round "06"]
[TimeControl "900+10"]
[Date "2021.12.27"]
[WhiteClock "0:00:26"]
[BlackClock "0:01:08"]

1. e4 {[%clk 0:15:00]}  e5 {[%clk 0:15:00]} 2. Nf3 {[%clk 0:15:00]}  Nc6 {[%clk 0:15:25]} 3. Bc4 {[%clk 0:15:29]}  Nf6 {[%clk 0:15:25]} 4. d3 {[%clk 0:15:29]}  Be7 {[%clk 0:15:25]} 5. O-O {[%clk 0:15:33]}  O-O {[%clk 0:15:29]} 6. Re1 {[%clk 0:15:33]}  d6 {[%clk 0:15:29]} 7. c3 {[%clk 0:15:33]}  Nd7 {[%clk 0:15:29]} 8. d4 {[%clk 0:15:33]}  Bf6 {[%clk 0:15:29]} 9. h3 {[%clk 0:14:53]}  Nb6 {[%clk 0:14:57]} 10. Bf1 {[%clk 0:14:53]}  Re8 {[%clk 0:14:04]} 11. d5 {[%clk 0:14:43]}  Ne7 {[%clk 0:13:44]} 12. c4 {[%clk 0:14:43]}  Ng6 {[%clk 0:13:44]} 13. Nc3 {[%clk 0:14:43]}  Nh4 {[%clk 0:13:35]} 14. Be3 {[%clk 0:13:38]}  Nxf3+ {[%clk 0:13:08]} 15. Qxf3 {[%clk 0:13:38]}  Bg5 {[%clk 0:12:15]} 16. b4 {[%clk 0:12:10]}  a5 {[%clk 0:11:19]} 17. Bxg5 {[%clk 0:12:06]}  Qxg5 {[%clk 0:11:19]} 18. c5 {[%clk 0:12:06]}  axb4 {[%clk 0:11:20]} 19. Nb5 {[%clk 0:09:57]}  dxc5 {[%clk 0:11:20]} 20. Nxc7 {[%clk 0:09:57]}  Bd7 {[%clk 0:11:20]} 21. Nxa8 {[%clk 0:09:57]}  Rxa8 {[%clk 0:11:20]} 22. a3 {[%clk 0:09:57]}  Qd2 {[%clk 0:11:05]} 23. axb4 {[%clk 0:10:02]}  Rxa1 {[%clk 0:10:27]} 24. Rxa1 {[%clk 0:10:02]}  Qxb4 {[%clk 0:10:27]} 25. Ra7 {[%clk 0:08:41]}  Nc8 {[%clk 0:10:39]} 26. Ra8 {[%clk 0:08:41]}  Kf8 {[%clk 0:10:27]} 27. Qe3 {[%clk 0:05:32]}  f6 {[%clk 0:09:40]} 28. Be2 {[%clk 0:05:32]}  Ke7 {[%clk 0:09:09]} 29. Bg4 {[%clk 0:03:17]}  Bxg4 {[%clk 0:08:00]} 30. hxg4 {[%clk 0:03:17]}  Nd6 {[%clk 0:08:00]} 31. g5 {[%clk 0:03:17]}  Nxe4 {[%clk 0:07:57]} 32. gxf6+ {[%clk 0:03:04]}  Kxf6 {[%clk 0:04:49]} 33. Re8 {[%clk 0:03:04]}  Qd4 {[%clk 0:04:37]} 34. Qf3+ {[%clk 0:02:32]}  Kg5 {[%clk 0:02:54]} 35. Re7 {[%clk 0:01:30]}  g6 {[%clk 0:02:54]} 36. Rxh7 {[%clk 0:01:30]}  Qxd5 {[%clk 0:02:30]} 37. Qe3+ {[%clk 0:00:56]}  Kf6 {[%clk 0:02:30]} 38. Qf3+ {[%clk 0:00:56]}  Kg5 {[%clk 0:02:30]} 39. Qe3+ {[%clk 0:00:56]}  Kf6 {[%clk 0:02:30]} 40. Kh2 {[%clk 0:00:25]}  Ng5 {[%clk 0:01:08]} 41. Rc7 {[%clk 0:00:26]}  Ne6 {[%clk 0:01:08]} 42. Rh7 {[%clk 0:00:26]}  Ng5 {[%clk 0:01:08]} 43. Rc7 {[%clk 0:00:26]}  Ne6 {[%clk 0:01:08]} 44. Rh7 {[%clk 0:00:26]} 1/2-1/2


[Site "http://www.Chess.com"]

[Event "FIDE World Rapid Chess Championship 2021"]
[White "Nguyen, Thai Dai Van"]
[Black "Thybo, Jesper Sondergaard"]
[WhiteFideId "358878"]
[BlackFideId "1438832"]
[WhiteElo "2488"]
[BlackElo "2401"]
[Result "1-0"]
[Round "06"]
[TimeControl "900+10"]
[Date "2021.12.27"]
[WhiteClock "0:00:58"]
[BlackClock "0:01:02"]

1. e4 {[%clk 0:15:00]}  e5 {[%clk 0:15:00]} 2. Nf3 {[%clk 0:15:20]}  Nc6 {[%clk 0:15:25]} 3. Bb5 {[%clk 0:15:20]}  Nf6 {[%clk 0:15:25]} 4. d3 {[%clk 0:15:20]}  Bc5 {[%clk 0:15:25]} 5. Ba4 {[%clk 0:14:55]}  O-O {[%clk 0:15:31]} 6. O-O {[%clk 0:14:55]}  d6 {[%clk 0:14:33]} 7. c3 {[%clk 0:14:37]}  Ne7 {[%clk 0:13:56]} 8. h3 {[%clk 0:14:13]}  Ng6 {[%clk 0:13:29]} 9. Nbd2 {[%clk 0:14:13]}  c6 {[%clk 0:13:28]} 10. d4 {[%clk 0:12:07]}  Bb6 {[%clk 0:13:28]} 11. Re1 {[%clk 0:12:07]}  Re8 {[%clk 0:13:13]} 12. Bc2 {[%clk 0:11:53]}  Bc7 {[%clk 0:13:13]} 13. Nf1 {[%clk 0:11:53]}  d5 {[%clk 0:12:06]} 14. Bg5 {[%clk 0:12:00]}  dxe4 {[%clk 0:10:56]} 15. Bxe4 {[%clk 0:11:58]}  h6 {[%clk 0:10:14]} 16. Bxf6 {[%clk 0:11:37]}  Qxf6 {[%clk 0:09:06]} 17. Bxg6 {[%clk 0:11:37]}  Qxg6 {[%clk 0:09:06]} 18. Nxe5 {[%clk 0:07:17]}  Bxe5 {[%clk 0:09:11]} 19. Qf3 {[%clk 0:05:58]}  Qg5 {[%clk 0:09:08]} 20. Rad1 {[%clk 0:04:18]}  Qf6 {[%clk 0:05:39]} 21. Qh5 {[%clk 0:03:35]}  Be6 {[%clk 0:01:10]} 22. dxe5 {[%clk 0:02:59]}  Qe7 {[%clk 0:01:10]} 23. a3 {[%clk 0:02:59]}  Bb3 {[%clk 0:01:10]} 24. Rd4 {[%clk 0:02:59]}  Rad8 {[%clk 0:00:46]} 25. Ng3 {[%clk 0:02:49]}  Be6 {[%clk 0:00:46]} 26. Ne4 {[%clk 0:02:49]}  Rxd4 {[%clk 0:00:48]} 27. cxd4 {[%clk 0:01:54]}  Rd8 {[%clk 0:00:48]} 28. Nd6 {[%clk 0:01:54]}  Bxh3 {[%clk 0:00:23]} 29. Nxf7 {[%clk 0:01:55]}  Qxf7 {[%clk 0:00:23]} 30. Qxh3 {[%clk 0:01:55]}  Rxd4 {[%clk 0:00:23]} 31. Qc8+ {[%clk 0:01:10]}  Kh7 {[%clk 0:00:21]} 32. e6 {[%clk 0:01:10]}  Qe7 {[%clk 0:00:21]} 33. Qb8 {[%clk 0:01:10]}  a6 {[%clk 0:00:21]} 34. Qe5 {[%clk 0:01:10]}  Rd5 {[%clk 0:00:21]} 35. Qb8 {[%clk 0:01:10]}  Rd8 {[%clk 0:00:28]} 36. Qf4 {[%clk 0:01:14]}  Rd5 {[%clk 0:00:28]} 37. g3 {[%clk 0:01:14]}  a5 {[%clk 0:00:28]} 38. Kg2 {[%clk 0:01:14]}  Rd8 {[%clk 0:00:28]} 39. Re5 {[%clk 0:01:14]}  Kh8 {[%clk 0:00:28]} 40. Qe3 {[%clk 0:00:42]}  Re8 {[%clk 0:00:30]} 41. f4 {[%clk 0:00:42]}  a4 {[%clk 0:00:30]} 42. Kh3 {[%clk 0:00:42]}  Rd8 {[%clk 0:00:30]} 43. Qf3 {[%clk 0:00:33]}  Rd2 {[%clk 0:00:25]} 44. Re2 {[%clk 0:00:33]}  Rxe2 {[%clk 0:00:25]} 45. Qxe2 {[%clk 0:00:33]}  g6 {[%clk 0:00:25]} 46. Qe5+ {[%clk 0:00:33]}  Kg8 {[%clk 0:00:25]} 47. g4 {[%clk 0:00:33]}  b5 {[%clk 0:00:12]} 48. f5 {[%clk 0:00:45]}  gxf5 {[%clk 0:00:12]} 49. gxf5 {[%clk 0:00:45]}  Qg5 {[%clk 0:00:12]} 50. e7 {[%clk 0:00:45]}  Qh5+ {[%clk 0:00:12]} 51. Kg3 {[%clk 0:00:45]}  Qg5+ {[%clk 0:00:12]} 52. Kh3 {[%clk 0:00:45]}  Qh5+ {[%clk 0:00:12]} 53. Kg3 {[%clk 0:00:45]}  Qg5+ {[%clk 0:00:12]} 54. Kf3 {[%clk 0:00:58]}  Qh5+ {[%clk 0:01:02]} 55. Ke3 {[%clk 0:00:58]}  Qh3+ {[%clk 0:01:02]} 56. Kd4 {[%clk 0:00:58]} 1-0


[Site "http://www.Chess.com"]

[Event "FIDE World Rapid Chess Championship 2021"]
[White "Mikhalevski, Victor"]
[Black "Postny, Evgeny"]
[WhiteFideId "2801914"]
[BlackFideId "2804344"]
[WhiteElo "2366"]
[BlackElo "2454"]
[Result "1-0"]
[Round "06"]
[TimeControl "900+10"]
[Date "2021.12.27"]
[WhiteClock "0:01:19"]
[BlackClock "0:00:42"]

1. Nf3 {[%clk 0:15:00]}  Nf6 {[%clk 0:15:00]} 2. c4 {[%clk 0:15:16]}  e6 {[%clk 0:15:18]} 3. g3 {[%clk 0:15:16]}  d5 {[%clk 0:15:18]} 4. b3 {[%clk 0:15:16]}  d4 {[%clk 0:15:18]} 5. Bg2 {[%clk 0:15:16]}  c5 {[%clk 0:15:18]} 6. e3 {[%clk 0:15:16]}  Nc6 {[%clk 0:15:18]} 7. O-O {[%clk 0:15:16]}  Be7 {[%clk 0:15:18]} 8. exd4 {[%clk 0:15:16]}  cxd4 {[%clk 0:15:14]} 9. Re1 {[%clk 0:15:50]}  O-O {[%clk 0:15:14]} 10. Ne5 {[%clk 0:15:50]}  Nxe5 {[%clk 0:15:14]} 11. Rxe5 {[%clk 0:15:50]}  Nd7 {[%clk 0:15:14]} 12. Re1 {[%clk 0:15:51]}  Nc5 {[%clk 0:15:00]} 13. d3 {[%clk 0:15:29]}  a5 {[%clk 0:15:00]} 14. Na3 {[%clk 0:15:25]}  Bd7 {[%clk 0:13:14]} 15. Nc2 {[%clk 0:15:14]}  Bc6 {[%clk 0:12:43]} 16. Bxc6 {[%clk 0:15:14]}  bxc6 {[%clk 0:12:43]} 17. f4 {[%clk 0:15:14]}  Re8 {[%clk 0:12:34]} 18. Qf3 {[%clk 0:12:55]}  Qd7 {[%clk 0:11:17]} 19. Re2 {[%clk 0:12:41]}  Bf6 {[%clk 0:10:28]} 20. Ba3 {[%clk 0:10:13]}  Na6 {[%clk 0:08:18]} 21. Rae1 {[%clk 0:07:58]}  g6 {[%clk 0:08:18]} 22. g4 {[%clk 0:07:58]}  c5 {[%clk 0:07:18]} 23. Bc1 {[%clk 0:07:33]}  Nb4 {[%clk 0:07:18]} 24. Na3 {[%clk 0:07:17]}  Qc6 {[%clk 0:06:47]} 25. Qxc6 {[%clk 0:06:45]}  Nxc6 {[%clk 0:06:47]} 26. Nb5 {[%clk 0:06:45]}  Red8 {[%clk 0:06:47]} 27. a3 {[%clk 0:07:02]}  a4 {[%clk 0:03:33]} 28. bxa4 {[%clk 0:06:39]}  Rxa4 {[%clk 0:03:05]} 29. f5 {[%clk 0:06:39]}  gxf5 {[%clk 0:03:13]} 30. gxf5 {[%clk 0:05:18]}  e5 {[%clk 0:03:13]} 31. Bh6 {[%clk 0:05:18]}  Kh8 {[%clk 0:03:13]} 32. Rg2 {[%clk 0:05:18]}  Ne7 {[%clk 0:03:13]} 33. Kh1 {[%clk 0:05:19]}  Ra6 {[%clk 0:02:37]} 34. Rf1 {[%clk 0:04:13]}  Ng8 {[%clk 0:01:34]} 35. Bc1 {[%clk 0:04:13]}  Ne7 {[%clk 0:01:34]} 36. Rg4 {[%clk 0:03:02]}  h5 {[%clk 0:01:02]} 37. Re4 {[%clk 0:02:03]}  Rg8 {[%clk 0:01:02]} 38. Rf3 {[%clk 0:02:03]}  Rg4 {[%clk 0:01:02]} 39. Rh3 {[%clk 0:02:03]}  Rxe4 {[%clk 0:00:30]} 40. Rxh5+ {[%clk 0:02:11]}  Kg8 {[%clk 0:00:30]} 41. dxe4 {[%clk 0:02:11]}  Ra4 {[%clk 0:00:30]} 42. Nd6 {[%clk 0:02:11]}  Nc6 {[%clk 0:00:17]} 43. Rh3 {[%clk 0:02:21]}  Be7 {[%clk 0:00:17]} 44. Rg3+ {[%clk 0:00:56]}  Kh7 {[%clk 0:00:17]} 45. Nxf7 {[%clk 0:00:56]}  Rxc4 {[%clk 0:00:17]} 46. Bg5 {[%clk 0:00:56]}  Bxg5 {[%clk 0:00:17]} 47. Rxg5 {[%clk 0:01:00]}  Rc1+ {[%clk 0:00:24]} 48. Kg2 {[%clk 0:01:00]}  Rc2+ {[%clk 0:00:24]} 49. Kg3 {[%clk 0:01:00]}  Rc3+ {[%clk 0:00:24]} 50. Kh4 {[%clk 0:01:00]}  Rf3 {[%clk 0:00:24]} 51. Rg6 {[%clk 0:01:00]}  Ne7 {[%clk 0:00:24]} 52. Ng5+ {[%clk 0:01:00]}  Kh8 {[%clk 0:00:24]} 53. Nxf3 {[%clk 0:01:19]}  Nxg6+ {[%clk 0:00:42]} 54. fxg6 {[%clk 0:01:19]}  c4 {[%clk 0:00:42]} 55. Nxe5 {[%clk 0:01:19]} 1-0


[Site "http://www.Chess.com"]

[Event "FIDE World Rapid Chess Championship 2021"]
[White "Lopusiewicz, Piotr"]
[Black "Heberla, Bartlomiej"]
[WhiteFideId "1116029"]
[BlackFideId "1115120"]
[WhiteElo "2197"]
[BlackElo "2437"]
[Result "0-1"]
[Round "06"]
[TimeControl "900+10"]
[Date "2021.12.27"]
[WhiteClock "0:00:17"]
[BlackClock "0:09:32"]

1. d4 {[%clk 0:15:00]}  d5 {[%clk 0:15:00]} 2. c4 {[%clk 0:15:00]}  e6 {[%clk 0:15:00]} 3. Nf3 {[%clk 0:15:00]}  Nf6 {[%clk 0:15:00]} 4. Nc3 {[%clk 0:15:00]}  Nbd7 {[%clk 0:15:00]} 5. cxd5 {[%clk 0:15:00]}  exd5 {[%clk 0:15:00]} 6. Bg5 {[%clk 0:15:00]}  c6 {[%clk 0:15:00]} 7. e3 {[%clk 0:15:00]}  Be7 {[%clk 0:15:30]} 8. Bd3 {[%clk 0:15:41]}  O-O {[%clk 0:15:30]} 9. h3 {[%clk 0:15:41]}  Ne4 {[%clk 0:15:45]} 10. Bf4 {[%clk 0:14:42]}  Ndf6 {[%clk 0:14:51]} 11. Qc2 {[%clk 0:14:42]}  Re8 {[%clk 0:14:51]} 12. O-O {[%clk 0:14:42]}  Bf5 {[%clk 0:14:40]} 13. Rfe1 {[%clk 0:13:54]}  Bg6 {[%clk 0:14:01]} 14. Ne5 {[%clk 0:11:34]}  Bd6 {[%clk 0:11:30]} 15. Nxg6 {[%clk 0:11:34]}  hxg6 {[%clk 0:11:30]} 16. Bxd6 {[%clk 0:10:28]}  Nxd6 {[%clk 0:11:40]} 17. Na4 {[%clk 0:10:14]}  g5 {[%clk 0:11:28]} 18. f3 {[%clk 0:10:14]}  Rc8 {[%clk 0:11:28]} 19. Qf2 {[%clk 0:07:23]}  g6 {[%clk 0:11:10]} 20. Nc3 {[%clk 0:05:17]}  Nh5 {[%clk 0:10:41]} 21. g4 {[%clk 0:05:17]}  Ng7 {[%clk 0:10:41]} 22. Rad1 {[%clk 0:04:30]}  Ne6 {[%clk 0:10:37]} 23. Rf1 {[%clk 0:02:04]}  Qf6 {[%clk 0:10:21]} 24. Bb1 {[%clk 0:02:04]}  Rc7 {[%clk 0:10:16]} 25. f4 {[%clk 0:01:29]}  gxf4 {[%clk 0:09:13]} 26. exf4 {[%clk 0:01:29]}  Rce7 {[%clk 0:09:13]} 27. f5 {[%clk 0:01:29]}  Ng5 {[%clk 0:09:13]} 28. Qg2 {[%clk 0:01:29]}  Qh8 {[%clk 0:09:32]} 29. Rd3 {[%clk 0:00:17]}  Re3 {[%clk 0:09:32]} 30. fxg6 {[%clk 0:00:17]}  Nxh3+ {[%clk 0:09:32]} 0-1


[Site "http://www.Chess.com"]

[Event "FIDE World Rapid Chess Championship 2021"]
[White "Janik, Igor"]
[Black "Yunusov, Mukhammad"]
[WhiteFideId "1159259"]
[BlackFideId "14700930"]
[WhiteElo "2462"]
[BlackElo "1832"]
[Result "1-0"]
[Round "06"]
[TimeControl "900+10"]
[Date "2021.12.27"]
[WhiteClock "0:16:00"]
[BlackClock "0:00:21"]

1. d4 {[%clk 0:15:00]}  d5 {[%clk 0:15:00]} 2. Bf4 {[%clk 0:15:19]}  Nf6 {[%clk 0:15:17]} 3. e3 {[%clk 0:15:19]}  c5 {[%clk 0:15:17]} 4. c3 {[%clk 0:15:19]}  Nc6 {[%clk 0:15:17]} 5. Nd2 {[%clk 0:15:19]}  Qb6 {[%clk 0:15:17]} 6. Qb3 {[%clk 0:15:19]}  Qxb3 {[%clk 0:15:17]} 7. axb3 {[%clk 0:15:19]}  Bf5 {[%clk 0:15:29]} 8. Bb5 {[%clk 0:15:46]}  e6 {[%clk 0:13:00]} 9. Ngf3 {[%clk 0:15:29]}  Nd7 {[%clk 0:13:00]} 10. Ke2 {[%clk 0:15:36]}  Be7 {[%clk 0:10:17]} 11. Bxc6 {[%clk 0:15:36]}  bxc6 {[%clk 0:10:13]} 12. Ra6 {[%clk 0:14:29]}  cxd4 {[%clk 0:10:05]} 13. exd4 {[%clk 0:14:30]}  O-O {[%clk 0:07:04]} 14. Rha1 {[%clk 0:14:37]}  e5 {[%clk 0:06:15]} 15. Nxe5 {[%clk 0:14:30]}  Nxe5 {[%clk 0:04:09]} 16. dxe5 {[%clk 0:14:20]}  Bc5 {[%clk 0:04:09]} 17. Rxc6 {[%clk 0:14:24]}  Bb6 {[%clk 0:03:12]} 18. Be3 {[%clk 0:14:24]}  Bxe3 {[%clk 0:03:12]} 19. Kxe3 {[%clk 0:14:24]}  Rfe8 {[%clk 0:02:43]} 20. Kd4 {[%clk 0:14:10]}  f6 {[%clk 0:02:43]} 21. f4 {[%clk 0:14:10]}  fxe5+ {[%clk 0:02:43]} 22. fxe5 {[%clk 0:14:10]}  Bg6 {[%clk 0:02:43]} 23. Rc7 {[%clk 0:14:32]}  a5 {[%clk 0:01:54]} 24. b4 {[%clk 0:14:32]}  a4 {[%clk 0:01:54]} 25. b5 {[%clk 0:14:32]}  Rf8 {[%clk 0:01:54]} 26. b6 {[%clk 0:14:32]}  Rab8 {[%clk 0:02:07]} 27. b7 {[%clk 0:14:38]}  Rf7 {[%clk 0:02:07]} 28. Rc8+ {[%clk 0:14:38]}  Rf8 {[%clk 0:02:07]} 29. Rxf8+ {[%clk 0:14:38]}  Kxf8 {[%clk 0:02:07]} 30. Rxa4 {[%clk 0:14:38]}  Rxb7 {[%clk 0:02:07]} 31. Rb4 {[%clk 0:14:38]}  Ra7 {[%clk 0:01:08]} 32. Nf3 {[%clk 0:15:14]}  Be4 {[%clk 0:01:08]} 33. e6 {[%clk 0:15:14]}  Ke7 {[%clk 0:01:08]} 34. Ke5 {[%clk 0:15:14]}  h6 {[%clk 0:01:08]} 35. Nd4 {[%clk 0:15:14]}  Rc7 {[%clk 0:00:40]} 36. Rb6 {[%clk 0:15:29]}  g5 {[%clk 0:00:40]} 37. Nc6+ {[%clk 0:15:29]}  Kf8 {[%clk 0:00:40]} 38. Kf6 {[%clk 0:15:29]}  Rc8 {[%clk 0:00:40]} 39. Ne5 {[%clk 0:15:29]}  g4 {[%clk 0:00:40]} 40. Rb7 {[%clk 0:16:00]}  d4 {[%clk 0:00:21]} 41. Rf7+ {[%clk 0:16:00]}  Kg8 {[%clk 0:00:21]} 42. Rg7+ {[%clk 0:16:00]} 1-0


[Site "http://www.Chess.com"]

[Event "FIDE World Rapid Chess Championship 2021"]
[White "Baum, Jonasz"]
[Black "Zilka, Stepan"]
[WhiteFideId "1195360"]
[BlackFideId "315303"]
[WhiteElo "2343"]
[BlackElo "2474"]
[Result "1/2-1/2"]
[Round "06"]
[TimeControl "900+10"]
[Date "2021.12.27"]
[WhiteClock "0:00:44"]
[BlackClock "0:05:00"]

1. d4 {[%clk 0:15:00]}  Nf6 {[%clk 0:15:00]} 2. c4 {[%clk 0:15:00]}  e6 {[%clk 0:15:00]} 3. Nf3 {[%clk 0:15:00]}  d5 {[%clk 0:15:28]} 4. g3 {[%clk 0:15:44]}  Be7 {[%clk 0:15:28]} 5. Bg2 {[%clk 0:15:44]}  O-O {[%clk 0:15:28]} 6. Nc3 {[%clk 0:15:44]}  a6 {[%clk 0:15:28]} 7. O-O {[%clk 0:16:00]}  Nbd7 {[%clk 0:15:16]} 8. Ne5 {[%clk 0:11:17]}  Nxe5 {[%clk 0:15:16]} 9. dxe5 {[%clk 0:11:17]}  Nd7 {[%clk 0:15:16]} 10. cxd5 {[%clk 0:11:17]}  Nxe5 {[%clk 0:15:16]} 11. dxe6 {[%clk 0:11:28]}  fxe6 {[%clk 0:13:20]} 12. Qb3 {[%clk 0:11:28]}  Qd4 {[%clk 0:13:24]} 13. Be3 {[%clk 0:10:02]}  Qb4 {[%clk 0:12:21]} 14. Qxb4 {[%clk 0:09:07]}  Bxb4 {[%clk 0:12:11]} 15. Ne4 {[%clk 0:09:07]}  Nc4 {[%clk 0:12:20]} 16. Bc5 {[%clk 0:06:23]}  Bxc5 {[%clk 0:12:20]} 17. Nxc5 {[%clk 0:06:23]}  Rb8 {[%clk 0:11:58]} 18. Rac1 {[%clk 0:06:32]}  Nd6 {[%clk 0:11:58]} 19. Rfd1 {[%clk 0:05:44]}  b6 {[%clk 0:11:02]} 20. Nb3 {[%clk 0:04:55]}  Rf7 {[%clk 0:10:10]} 21. Nd4 {[%clk 0:04:09]}  b5 {[%clk 0:10:10]} 22. Nc6 {[%clk 0:04:16]}  Rb6 {[%clk 0:08:09]} 23. Rxd6 {[%clk 0:02:13]}  cxd6 {[%clk 0:08:18]} 24. Nd8 {[%clk 0:02:13]}  Rb8 {[%clk 0:08:19]} 25. Nxf7 {[%clk 0:01:05]}  Kxf7 {[%clk 0:08:19]} 26. Rc7+ {[%clk 0:01:05]}  Kf6 {[%clk 0:08:19]} 27. Rc6 {[%clk 0:00:44]}  Ke7 {[%clk 0:05:00]} 28. Rc7+ {[%clk 0:00:44]}  Kf6 {[%clk 0:05:00]} 29. Rc6 {[%clk 0:00:44]}  Ke7 {[%clk 0:05:00]} 30. Rc7+ {[%clk 0:00:44]}  Kf6 {[%clk 0:05:00]} 1/2-1/2


[Site "http://www.Chess.com"]

[Event "FIDE World Rapid Chess Championship 2021"]
[White "Nasuta, Grzegorz"]
[Black "Tang, Andrew"]
[WhiteFideId "1141686"]
[BlackFideId "2059630"]
[WhiteElo "2345"]
[BlackElo "2427"]
[Result "0-1"]
[Round "06"]
[TimeControl "900+10"]
[Date "2021.12.27"]
[WhiteClock "0:00:37"]
[BlackClock "0:00:49"]

1. e4 {[%clk 0:15:00]}  e5 {[%clk 0:15:00]} 2. Nf3 {[%clk 0:15:00]}  Nc6 {[%clk 0:15:00]} 3. Bb5 {[%clk 0:15:00]}  a6 {[%clk 0:15:26]} 4. Ba4 {[%clk 0:15:35]}  Nf6 {[%clk 0:15:26]} 5. O-O {[%clk 0:15:35]}  Be7 {[%clk 0:15:26]} 6. d3 {[%clk 0:15:35]}  b5 {[%clk 0:15:26]} 7. Bb3 {[%clk 0:15:35]}  d6 {[%clk 0:15:26]} 8. c3 {[%clk 0:15:35]}  O-O {[%clk 0:15:26]} 9. a4 {[%clk 0:15:53]}  b4 {[%clk 0:15:25]} 10. a5 {[%clk 0:14:39]}  Rb8 {[%clk 0:14:29]} 11. Nbd2 {[%clk 0:14:30]}  Be6 {[%clk 0:14:29]} 12. Nc4 {[%clk 0:14:30]}  Nd7 {[%clk 0:12:54]} 13. Ba4 {[%clk 0:12:27]}  Na7 {[%clk 0:11:16]} 14. Be3 {[%clk 0:06:38]}  c5 {[%clk 0:11:15]} 15. Bxd7 {[%clk 0:06:10]}  Qxd7 {[%clk 0:09:43]} 16. Nb6 {[%clk 0:04:30]}  Qb7 {[%clk 0:09:43]} 17. cxb4 {[%clk 0:04:30]}  cxb4 {[%clk 0:08:41]} 18. Qa4 {[%clk 0:04:30]}  Bg4 {[%clk 0:08:49]} 19. Rfc1 {[%clk 0:03:29]}  Nb5 {[%clk 0:04:16]} 20. Nd2 {[%clk 0:02:08]}  f5 {[%clk 0:02:11]} 21. f3 {[%clk 0:00:35]}  f4 {[%clk 0:02:11]} 22. Bf2 {[%clk 0:00:35]}  Be6 {[%clk 0:02:11]} 23. Qxb4 {[%clk 0:00:35]}  g5 {[%clk 0:02:11]} 24. d4 {[%clk 0:00:27]}  Kh8 {[%clk 0:00:34]} 25. dxe5 {[%clk 0:00:25]}  dxe5 {[%clk 0:00:34]} 26. Bc5 {[%clk 0:00:25]}  Bxc5+ {[%clk 0:00:34]} 27. Qxc5 {[%clk 0:00:25]}  Qg7 {[%clk 0:00:34]} 28. Ndc4 {[%clk 0:00:25]}  Bxc4 {[%clk 0:00:34]} 29. Rxc4 {[%clk 0:00:06]}  g4 {[%clk 0:00:22]} 30. fxg4 {[%clk 0:00:06]}  f3 {[%clk 0:00:22]} 31. g3 {[%clk 0:00:06]}  h5 {[%clk 0:00:22]} 32. gxh5 {[%clk 0:00:06]}  f2+ {[%clk 0:00:22]} 33. Kg2 {[%clk 0:00:06]}  Qf6 {[%clk 0:00:22]} 34. Kf1 {[%clk 0:00:19]}  Rbd8 {[%clk 0:00:32]} 35. Rc3 {[%clk 0:00:19]}  Nxc3 {[%clk 0:00:32]} 36. Qxc3 {[%clk 0:00:19]}  Qg5 {[%clk 0:00:32]} 37. Nd5 {[%clk 0:00:37]}  Qxh5 {[%clk 0:00:49]} 38. Kg2 {[%clk 0:00:37]}  f1=Q+ {[%clk 0:00:49]} 39. Rxf1 {[%clk 0:00:37]}  Qe2+ {[%clk 0:00:49]} 40. Kh3 {[%clk 0:00:37]}  Qxf1+ {[%clk 0:00:49]} 41. Kh4 {[%clk 0:00:37]}  Rde8 {[%clk 0:00:49]} 42. Qc6 {[%clk 0:00:37]}  Qf7 {[%clk 0:00:49]} 0-1


[Site "http://www.Chess.com"]

[Event "FIDE World Rapid Chess Championship 2021"]
[White "Nevednichy, Vladislav"]
[Black "Kolosowski, Mateusz"]
[WhiteFideId "1205730"]
[BlackFideId "1129708"]
[WhiteElo "2425"]
[BlackElo "2371"]
[Result "1-0"]
[Round "06"]
[TimeControl "900+10"]
[Date "2021.12.27"]
[WhiteClock "0:00:46"]
[BlackClock "0:00:33"]

1. e4 {[%clk 0:15:00]}  e5 {[%clk 0:15:00]} 2. Nf3 {[%clk 0:15:00]}  Nc6 {[%clk 0:15:00]} 3. d3 {[%clk 0:15:37]}  Nf6 {[%clk 0:15:34]} 4. g3 {[%clk 0:15:37]}  d5 {[%clk 0:15:34]} 5. exd5 {[%clk 0:15:37]}  Nxd5 {[%clk 0:15:34]} 6. Bg2 {[%clk 0:15:37]}  Be7 {[%clk 0:15:30]} 7. O-O {[%clk 0:15:51]}  O-O {[%clk 0:15:30]} 8. Re1 {[%clk 0:15:51]}  Bf6 {[%clk 0:13:43]} 9. Nbd2 {[%clk 0:16:03]}  Re8 {[%clk 0:13:29]} 10. a3 {[%clk 0:15:42]}  Bf5 {[%clk 0:12:40]} 11. Ne4 {[%clk 0:15:02]}  Be7 {[%clk 0:12:40]} 12. Bd2 {[%clk 0:14:35]}  Qd7 {[%clk 0:10:29]} 13. b4 {[%clk 0:14:13]}  Bf8 {[%clk 0:08:03]} 14. c4 {[%clk 0:09:43]}  Nb6 {[%clk 0:06:47]} 15. Bc3 {[%clk 0:08:49]}  Rad8 {[%clk 0:05:52]} 16. b5 {[%clk 0:06:37]}  Nd4 {[%clk 0:04:34]} 17. Nxd4 {[%clk 0:05:29]}  exd4 {[%clk 0:04:42]} 18. Bb4 {[%clk 0:05:29]}  Bg4 {[%clk 0:04:42]} 19. Qb3 {[%clk 0:04:53]}  Qf5 {[%clk 0:04:14]} 20. Bxf8 {[%clk 0:03:50]}  Rxf8 {[%clk 0:04:14]} 21. f3 {[%clk 0:03:50]}  Bh5 {[%clk 0:03:44]} 22. g4 {[%clk 0:03:24]}  Bxg4 {[%clk 0:03:44]} 23. fxg4 {[%clk 0:03:24]}  Qxg4 {[%clk 0:03:44]} 24. Nf2 {[%clk 0:03:24]}  Qg5 {[%clk 0:03:44]} 25. Nh3 {[%clk 0:03:23]}  Qh6 {[%clk 0:03:19]} 26. c5 {[%clk 0:02:56]}  Nd7 {[%clk 0:02:29]} 27. Qd5 {[%clk 0:02:56]}  Qd2 {[%clk 0:02:30]} 28. Qxd4 {[%clk 0:02:07]}  Nf6 {[%clk 0:02:30]} 29. Qe3 {[%clk 0:02:07]}  Qb2 {[%clk 0:02:30]} 30. Nf2 {[%clk 0:01:56]}  Qxb5 {[%clk 0:01:34]} 31. Reb1 {[%clk 0:01:09]}  Qd7 {[%clk 0:01:34]} 32. Rxb7 {[%clk 0:01:09]}  Rfe8 {[%clk 0:01:34]} 33. Qg3 {[%clk 0:01:09]}  Qd4 {[%clk 0:01:34]} 34. Rf1 {[%clk 0:01:09]}  Nh5 {[%clk 0:01:34]} 35. Qxc7 {[%clk 0:01:09]}  Rf8 {[%clk 0:01:33]} 36. c6 {[%clk 0:01:09]}  Nf4 {[%clk 0:01:33]} 37. Kh1 {[%clk 0:01:09]}  Nxg2 {[%clk 0:01:13]} 38. Kxg2 {[%clk 0:00:57]}  Rd6 {[%clk 0:01:13]} 39. Ne4 {[%clk 0:00:57]}  Rg6+ {[%clk 0:01:13]} 40. Ng3 {[%clk 0:00:57]}  Qd5+ {[%clk 0:00:50]} 41. Kg1 {[%clk 0:00:45]}  Rxc6 {[%clk 0:00:50]} 42. Qd7 {[%clk 0:00:45]}  Rd6 {[%clk 0:00:50]} 43. Qe7 {[%clk 0:00:45]}  Qd4+ {[%clk 0:00:33]} 44. Kg2 {[%clk 0:00:46]}  Re6 {[%clk 0:00:33]} 45. Qxf7+ {[%clk 0:00:46]} 1-0


[Site "http://www.Chess.com"]